[Event "Titled Tuesday Blitz May 25 2021"]
[White "Goltsev, Dmitry"]
[Black "Fernandez, Daniel Howard"]
[WhiteFideId "24176710"]
[BlackFideId "5801605"]
[WhiteElo "2366"]
[BlackElo "2468"]
[Result "1/2-1/2"]
[Round "07"]
[TimeControl "180+1"]
[Date "2021.05.25"]
[WhiteClock "0:00:05"]
[BlackClock "0:00:05"]

1. e4 {[%clk 0:03:00]}  c5 {[%clk 0:02:58]} 2. Nf3 {[%clk 0:03:00]}  d6 {[%clk 0:02:58]} 3. d4 {[%clk 0:03:00]}  cxd4 {[%clk 0:02:59]} 4. Nxd4 {[%clk 0:03:01]}  Nf6 {[%clk 0:02:59]} 5. Nc3 {[%clk 0:03:02]}  a6 {[%clk 0:02:59]} 6. Be2 {[%clk 0:03:02]}  e5 {[%clk 0:02:56]} 7. Nb3 {[%clk 0:03:02]}  Be7 {[%clk 0:02:55]} 8. O-O {[%clk 0:03:01]}  O-O {[%clk 0:02:54]} 9. f4 {[%clk 0:03:02]}  b5 {[%clk 0:02:43]} 10. f5 {[%clk 0:02:55]}  Bb7 {[%clk 0:02:42]} 11. Bf3 {[%clk 0:02:52]}  Nbd7 {[%clk 0:02:40]} 12. a3 {[%clk 0:02:50]}  a5 {[%clk 0:02:39]} 13. Qd3 {[%clk 0:02:39]}  b4 {[%clk 0:02:34]} 14. Nb5 {[%clk 0:02:35]}  a4 {[%clk 0:02:16]} 15. Nd2 {[%clk 0:02:31]}  Qb6+ {[%clk 0:02:16]} 16. Kh1 {[%clk 0:02:30]}  Ba6 {[%clk 0:02:16]} 17. Be2 {[%clk 0:01:47]}  Rfb8 {[%clk 0:02:01]} 18. axb4 {[%clk 0:01:43]}  Bxb5 {[%clk 0:02:01]} 19. Qxb5 {[%clk 0:01:43]}  Qxb5 {[%clk 0:02:02]} 20. Bxb5 {[%clk 0:01:43]}  Rxb5 {[%clk 0:02:03]} 21. c3 {[%clk 0:01:41]}  d5 {[%clk 0:01:56]} 22. exd5 {[%clk 0:01:39]}  Rxd5 {[%clk 0:01:56]} 23. Nc4 {[%clk 0:01:38]}  e4 {[%clk 0:01:47]} 24. Be3 {[%clk 0:01:35]}  Ne5 {[%clk 0:01:41]} 25. Nb6 {[%clk 0:01:33]}  Rad8 {[%clk 0:01:38]} 26. Nxd5 {[%clk 0:01:31]}  Nxd5 {[%clk 0:01:39]} 27. Bd4 {[%clk 0:01:30]}  Nd3 {[%clk 0:01:36]} 28. b5 {[%clk 0:01:29]}  e3 {[%clk 0:01:34]} 29. Rf3 {[%clk 0:01:27]}  Nxb2 {[%clk 0:01:21]} 30. Bxe3 {[%clk 0:01:25]}  Nxc3 {[%clk 0:01:21]} 31. b6 {[%clk 0:01:23]}  Rd7 {[%clk 0:01:15]} 32. Rc1 {[%clk 0:01:21]}  Nbd1 {[%clk 0:01:10]} 33. Bg1 {[%clk 0:01:19]}  Bf6 {[%clk 0:01:09]} 34. Rf4 {[%clk 0:01:17]}  h5 {[%clk 0:01:04]} 35. Rb4 {[%clk 0:01:15]}  Rb7 {[%clk 0:01:04]} 36. Rc4 {[%clk 0:01:13]}  Be5 {[%clk 0:00:56]} 37. Rc8+ {[%clk 0:01:09]}  Kh7 {[%clk 0:00:56]} 38. Rc2 {[%clk 0:01:03]}  a3 {[%clk 0:00:55]} 39. Ra8 {[%clk 0:01:02]}  a2 {[%clk 0:00:53]} 40. Rd2 {[%clk 0:01:01]}  Kh6 {[%clk 0:00:41]} 41. h4 {[%clk 0:00:59]}  g6 {[%clk 0:00:39]} 42. fxg6 {[%clk 0:00:53]}  fxg6 {[%clk 0:00:40]} 43. Bc5 {[%clk 0:00:51]}  Ne4 {[%clk 0:00:33]} 44. Bf8+ {[%clk 0:00:49]}  Kh7 {[%clk 0:00:33]} 45. Rdxa2 {[%clk 0:00:46]}  Ng3+ {[%clk 0:00:29]} 46. Kh2 {[%clk 0:00:39]}  Ne4+ {[%clk 0:00:22]} 47. g3 {[%clk 0:00:36]}  Bxg3+ {[%clk 0:00:15]} 48. Kg2 {[%clk 0:00:36]}  Ne3+ {[%clk 0:00:11]} 49. Kf3 {[%clk 0:00:34]}  Nd5 {[%clk 0:00:10]} 50. Kxe4 {[%clk 0:00:33]}  Nxb6 {[%clk 0:00:11]} 51. R8a7 {[%clk 0:00:31]}  Rxa7 {[%clk 0:00:11]} 52. Rxa7+ {[%clk 0:00:32]}  Kg8 {[%clk 0:00:11]} 53. Be7 {[%clk 0:00:32]}  Nc8 {[%clk 0:00:11]} 54. Ra8 {[%clk 0:00:31]}  Kf7 {[%clk 0:00:11]} 55. Bg5 {[%clk 0:00:28]}  Nd6+ {[%clk 0:00:11]} 56. Kd5 {[%clk 0:00:27]}  Nf5 {[%clk 0:00:11]} 57. Ra7+ {[%clk 0:00:27]}  Kg8 {[%clk 0:00:12]} 58. Ke6 {[%clk 0:00:27]}  Bxh4 {[%clk 0:00:11]} 59. Kf6 {[%clk 0:00:23]}  Bxg5+ {[%clk 0:00:11]} 60. Kxg6 {[%clk 0:00:20]}  Ne7+ {[%clk 0:00:10]} 61. Kxg5 {[%clk 0:00:20]}  Kf8 {[%clk 0:00:11]} 62. Kf6 {[%clk 0:00:17]}  Ng8+ {[%clk 0:00:11]} 63. Kg5 {[%clk 0:00:16]}  Ne7 {[%clk 0:00:10]} 64. Kxh5 {[%clk 0:00:16]}  Kf7 {[%clk 0:00:11]} 65. Kg5 {[%clk 0:00:17]}  Ke6 {[%clk 0:00:11]} 66. Kf4 {[%clk 0:00:16]}  Nd5+ {[%clk 0:00:11]} 67. Ke4 {[%clk 0:00:16]}  Nf6+ {[%clk 0:00:11]} 68. Kd4 {[%clk 0:00:16]}  Nd7 {[%clk 0:00:11]} 69. Ra6+ {[%clk 0:00:15]}  Ke7 {[%clk 0:00:12]} 70. Kd5 {[%clk 0:00:13]}  Nf6+ {[%clk 0:00:12]} 71. Ke5 {[%clk 0:00:12]}  Nd7+ {[%clk 0:00:12]} 72. Kf5 {[%clk 0:00:13]}  Kf7 {[%clk 0:00:11]} 73. Re6 {[%clk 0:00:12]}  Nf8 {[%clk 0:00:11]} 74. Re1 {[%clk 0:00:12]}  Nd7 {[%clk 0:00:11]} 75. Re2 {[%clk 0:00:11]}  Nf8 {[%clk 0:00:11]} 76. Rd2 {[%clk 0:00:11]}  Ke7 {[%clk 0:00:11]} 77. Ra2 {[%clk 0:00:11]}  Nd7 {[%clk 0:00:11]} 78. Ra6 {[%clk 0:00:11]}  Nc5 {[%clk 0:00:10]} 79. Rc6 {[%clk 0:00:11]}  Nd7 {[%clk 0:00:10]} 80. Re6+ {[%clk 0:00:11]}  Kd8 {[%clk 0:00:10]} 81. Re3 {[%clk 0:00:10]}  Kc7 {[%clk 0:00:11]} 82. Ke6 {[%clk 0:00:10]}  Nb6 {[%clk 0:00:10]} 83. Rc3+ {[%clk 0:00:10]}  Kb7 {[%clk 0:00:11]} 84. Kd6 {[%clk 0:00:09]}  Nc8+ {[%clk 0:00:11]} 85. Kc5 {[%clk 0:00:09]}  Kc7 {[%clk 0:00:09]} 86. Rd3 {[%clk 0:00:09]}  Nb6 {[%clk 0:00:08]} 87. Rh3 {[%clk 0:00:05]}  Nd7+ {[%clk 0:00:08]} 88. Kd5 {[%clk 0:00:06]}  Nb6+ {[%clk 0:00:08]} 89. Ke6 {[%clk 0:00:06]}  Kc6 {[%clk 0:00:08]} 90. Rc3+ {[%clk 0:00:07]}  Kb7 {[%clk 0:00:08]} 91. Kd6 {[%clk 0:00:07]}  Nc8+ {[%clk 0:00:09]} 92. Kc5 {[%clk 0:00:07]}  Kc7 {[%clk 0:00:08]} 93. Ra3 {[%clk 0:00:07]}  Kd7 {[%clk 0:00:08]} 94. Ra6 {[%clk 0:00:07]}  Ne7 {[%clk 0:00:07]} 95. Rd6+ {[%clk 0:00:07]}  Ke8 {[%clk 0:00:07]} 96. Rd3 {[%clk 0:00:05]}  Kf7 {[%clk 0:00:08]} 97. Kd6 {[%clk 0:00:05]}  Nf5+ {[%clk 0:00:08]} 98. Ke5 {[%clk 0:00:06]}  Ne7 {[%clk 0:00:08]} 99. Rd7 {[%clk 0:00:06]}  Ke8 {[%clk 0:00:08]} 100. Ke6 {[%clk 0:00:06]}  Ng8 {[%clk 0:00:06]} 101. Rf7 {[%clk 0:00:06]}  Nh6 {[%clk 0:00:06]} 102. Ra7 {[%clk 0:00:04]}  Kf8 {[%clk 0:00:06]} 103. Kf6 {[%clk 0:00:04]}  Ng8+ {[%clk 0:00:06]} 104. Ke6 {[%clk 0:00:04]}  Nh6 {[%clk 0:00:06]} 105. Rb7 {[%clk 0:00:04]}  Ng8 {[%clk 0:00:06]} 106. Rh7 {[%clk 0:00:04]}  Ke8 {[%clk 0:00:05]} 107. Rf7 {[%clk 0:00:04]}  Nh6 {[%clk 0:00:06]} 108. Rf1 {[%clk 0:00:05]}  Ng8 {[%clk 0:00:06]} 109. Rf2 {[%clk 0:00:04]}  Nh6 {[%clk 0:00:06]} 110. Ra2 {[%clk 0:00:05]}  Kf8 {[%clk 0:00:05]} 111. Kf6 {[%clk 0:00:03]}  Ng8+ {[%clk 0:00:06]} 112. Kg6 {[%clk 0:00:04]}  Ne7+ {[%clk 0:00:06]} 113. Kg5 {[%clk 0:00:04]}  Kf7 {[%clk 0:00:05]} 114. Ra6 {[%clk 0:00:05]} 1/2-1/2


[Site "https://www.chess.com"]

[Event "Titled Tuesday Blitz May 25 2021"]
[White "Hamley, Ryan"]
[Black "Woodward, Andy"]
[WhiteFideId "30959497"]
[BlackFideId "30953499"]
[WhiteElo "2417"]
[BlackElo "2608"]
[Result "0-1"]
[Round "07"]
[TimeControl "180+1"]
[Date "2021.05.25"]
[WhiteClock "0:01:00"]
[BlackClock "0:00:46"]

1. d4 {[%clk 0:03:00]}  Nf6 {[%clk 0:02:59]} 2. Nf3 {[%clk 0:03:01]}  d5 {[%clk 0:02:59]} 3. Bf4 {[%clk 0:03:00]}  c5 {[%clk 0:02:59]} 4. e3 {[%clk 0:03:00]}  Nc6 {[%clk 0:02:59]} 5. Nbd2 {[%clk 0:03:00]}  Bf5 {[%clk 0:02:59]} 6. c3 {[%clk 0:03:00]}  e6 {[%clk 0:02:59]} 7. Be2 {[%clk 0:02:58]}  c4 {[%clk 0:02:57]} 8. Nh4 {[%clk 0:02:53]}  Be4 {[%clk 0:02:56]} 9. f3 {[%clk 0:02:50]}  Bg6 {[%clk 0:02:55]} 10. Nxg6 {[%clk 0:02:50]}  hxg6 {[%clk 0:02:56]} 11. Bg3 {[%clk 0:02:48]}  Bd6 {[%clk 0:02:56]} 12. O-O {[%clk 0:02:37]}  Bxg3 {[%clk 0:02:53]} 13. hxg3 {[%clk 0:02:38]}  Nh5 {[%clk 0:02:53]} 14. Qe1 {[%clk 0:02:33]}  Qg5 {[%clk 0:02:53]} 15. g4 {[%clk 0:02:13]}  Qxe3+ {[%clk 0:02:52]} 16. Qf2 {[%clk 0:02:12]}  Qxd2 {[%clk 0:02:43]} 17. gxh5 {[%clk 0:02:10]}  Rxh5 {[%clk 0:02:44]} 18. b3 {[%clk 0:02:06]}  Qxc3 {[%clk 0:02:15]} 19. bxc4 {[%clk 0:02:02]}  Qxd4 {[%clk 0:02:13]} 20. cxd5 {[%clk 0:02:02]}  Qxf2+ {[%clk 0:02:09]} 21. Kxf2 {[%clk 0:02:02]}  Rxd5 {[%clk 0:02:09]} 22. Rab1 {[%clk 0:02:02]}  O-O-O {[%clk 0:02:07]} 23. Rfc1 {[%clk 0:01:58]}  Rd2 {[%clk 0:02:04]} 24. Ke3 {[%clk 0:01:54]}  Rxa2 {[%clk 0:01:59]} 25. Bb5 {[%clk 0:01:51]}  Rd6 {[%clk 0:01:53]} 26. g4 {[%clk 0:01:45]}  Ra3+ {[%clk 0:01:49]} 27. Kf2 {[%clk 0:01:44]}  a6 {[%clk 0:01:45]} 28. Bf1 {[%clk 0:01:42]}  Kc7 {[%clk 0:01:43]} 29. Rc2 {[%clk 0:01:39]}  g5 {[%clk 0:01:29]} 30. Kg3 {[%clk 0:01:29]}  b5 {[%clk 0:01:27]} 31. Rbc1 {[%clk 0:01:22]}  Kb6 {[%clk 0:01:27]} 32. Bg2 {[%clk 0:01:20]}  Nd4 {[%clk 0:01:25]} 33. Rb2 {[%clk 0:01:20]}  f5 {[%clk 0:01:22]} 34. gxf5 {[%clk 0:01:19]}  exf5 {[%clk 0:01:19]} 35. Re1 {[%clk 0:01:18]}  g4 {[%clk 0:01:17]} 36. Re7 {[%clk 0:01:17]}  gxf3 {[%clk 0:01:12]} 37. Bf1 {[%clk 0:01:16]}  g5 {[%clk 0:01:12]} 38. Kf2 {[%clk 0:01:15]}  g4 {[%clk 0:01:10]} 39. Rg7 {[%clk 0:01:09]}  Rh6 {[%clk 0:01:08]} 40. Kg1 {[%clk 0:01:02]}  Ra1 {[%clk 0:00:55]} 41. Rd2 {[%clk 0:00:59]}  Rxf1+ {[%clk 0:00:44]} 42. Kxf1 {[%clk 0:00:59]}  Rh1+ {[%clk 0:00:44]} 43. Kf2 {[%clk 0:01:00]}  Rh2+ {[%clk 0:00:45]} 44. Ke3 {[%clk 0:01:00]}  Rxd2 {[%clk 0:00:45]} 45. Kxd2 {[%clk 0:01:00]}  f2 {[%clk 0:00:46]} 0-1


[Site "https://www.chess.com"]

[Event "Titled Tuesday Blitz May 25 2021"]
[White "Herrera Reyes, Jose Antonio"]
[Black "Niraj, Saripalli"]
[WhiteFideId "2274914"]
[BlackFideId "5045657"]
[WhiteElo "2370"]
[BlackElo "2113"]
[Result "1-0"]
[Round "07"]
[TimeControl "180+1"]
[Date "2021.05.25"]
[WhiteClock "0:00:27"]
[BlackClock "0:00:06"]

1. Nf3 {[%clk 0:03:00]}  b6 {[%clk 0:02:57]} 2. g3 {[%clk 0:03:00]}  Bb7 {[%clk 0:02:57]} 3. Bg2 {[%clk 0:03:00]}  e6 {[%clk 0:02:57]} 4. d3 {[%clk 0:03:00]}  Nf6 {[%clk 0:02:48]} 5. O-O {[%clk 0:02:58]}  c5 {[%clk 0:02:48]} 6. Nc3 {[%clk 0:02:57]}  d6 {[%clk 0:02:38]} 7. d4 {[%clk 0:02:56]}  Nbd7 {[%clk 0:02:34]} 8. dxc5 {[%clk 0:02:56]}  bxc5 {[%clk 0:02:26]} 9. Bf4 {[%clk 0:02:52]}  e5 {[%clk 0:02:00]} 10. Bg5 {[%clk 0:02:52]}  h6 {[%clk 0:01:54]} 11. Bc1 {[%clk 0:02:33]}  d5 {[%clk 0:01:31]} 12. Nh4 {[%clk 0:02:29]}  Nb6 {[%clk 0:01:29]} 13. a4 {[%clk 0:02:27]}  g5 {[%clk 0:01:21]} 14. Nf5 {[%clk 0:02:26]}  Qd7 {[%clk 0:01:21]} 15. e4 {[%clk 0:02:20]}  d4 {[%clk 0:01:17]} 16. a5 {[%clk 0:02:15]}  Nc4 {[%clk 0:01:10]} 17. Qe2 {[%clk 0:02:02]}  Nd6 {[%clk 0:01:07]} 18. Nd5 {[%clk 0:01:38]}  Nxd5 {[%clk 0:01:01]} 19. Nxd6+ {[%clk 0:01:35]}  Qxd6 {[%clk 0:00:57]} 20. exd5 {[%clk 0:01:35]}  Bxd5 {[%clk 0:00:53]} 21. Qb5+ {[%clk 0:01:35]}  Kd8 {[%clk 0:00:50]} 22. Bxd5 {[%clk 0:01:23]}  Qxd5 {[%clk 0:00:51]} 23. b4 {[%clk 0:01:17]}  Rc8 {[%clk 0:00:45]} 24. Ba3 {[%clk 0:01:15]}  h5 {[%clk 0:00:39]} 25. Rae1 {[%clk 0:01:08]}  f6 {[%clk 0:00:37]} 26. c4 {[%clk 0:01:06]}  Qf3 {[%clk 0:00:34]} 27. bxc5 {[%clk 0:00:59]}  h4 {[%clk 0:00:31]} 28. Qb1 {[%clk 0:00:40]}  Qxa3 {[%clk 0:00:30]} 29. Qg6 {[%clk 0:00:34]}  Rc6 {[%clk 0:00:27]} 30. Rxe5 {[%clk 0:00:32]}  Bxc5 {[%clk 0:00:20]} 31. Rd5+ {[%clk 0:00:32]}  Kc7 {[%clk 0:00:12]} 32. Qg7+ {[%clk 0:00:32]}  Be7 {[%clk 0:00:11]} 33. Qxh8 {[%clk 0:00:30]}  d3 {[%clk 0:00:10]} 34. Qe8 {[%clk 0:00:28]}  Kb7 {[%clk 0:00:09]} 35. Rd7+ {[%clk 0:00:27]}  Rc7 {[%clk 0:00:08]} 36. Rb1+ {[%clk 0:00:28]}  Kc6 {[%clk 0:00:06]} 37. Rxe7+ {[%clk 0:00:27]} 1-0


[Site "https://www.chess.com"]

[Event "Titled Tuesday Blitz May 25 2021"]
[White "Ibadov, Dashgyn"]
[Black "Garcia, Gabriel Gonzaga"]
[WhiteFideId "24107514"]
[BlackFideId "2138956"]
[WhiteElo "2191"]
[BlackElo "2240"]
[Result "0-1"]
[Round "07"]
[TimeControl "180+1"]
[Date "2021.05.25"]
[WhiteClock "0:00:03"]
[BlackClock "0:00:57"]

1. e4 {[%clk 0:03:00]}  c6 {[%clk 0:03:00]} 2. d4 {[%clk 0:03:00]}  d5 {[%clk 0:03:01]} 3. e5 {[%clk 0:03:01]}  Bf5 {[%clk 0:03:01]} 4. Nf3 {[%clk 0:03:01]}  e6 {[%clk 0:03:01]} 5. Be2 {[%clk 0:03:02]}  Ne7 {[%clk 0:03:01]} 6. O-O {[%clk 0:03:02]}  c5 {[%clk 0:03:01]} 7. c4 {[%clk 0:02:41]}  Nbc6 {[%clk 0:03:01]} 8. dxc5 {[%clk 0:02:40]}  dxc4 {[%clk 0:02:52]} 9. Nbd2 {[%clk 0:02:31]}  Ng6 {[%clk 0:02:46]} 10. Nxc4 {[%clk 0:02:30]}  Bxc5 {[%clk 0:02:46]} 11. Nd6+ {[%clk 0:02:16]}  Bxd6 {[%clk 0:02:46]} 12. exd6 {[%clk 0:02:17]}  Be4 {[%clk 0:02:43]} 13. Be3 {[%clk 0:02:09]}  O-O {[%clk 0:02:38]} 14. Qd2 {[%clk 0:01:51]}  Bd5 {[%clk 0:02:32]} 15. Bc5 {[%clk 0:01:49]}  Qd7 {[%clk 0:02:22]} 16. Nd4 {[%clk 0:01:42]}  Nxd4 {[%clk 0:02:18]} 17. Qxd4 {[%clk 0:01:43]}  Rfc8 {[%clk 0:02:16]} 18. Rac1 {[%clk 0:01:40]}  Qc6 {[%clk 0:02:06]} 19. b3 {[%clk 0:01:05]}  Bxg2 {[%clk 0:01:42]} 20. Ba3 {[%clk 0:01:05]}  Qe4 {[%clk 0:01:34]} 21. Qxe4 {[%clk 0:01:05]}  Bxe4 {[%clk 0:01:35]} 22. d7 {[%clk 0:00:24]}  Rd8 {[%clk 0:01:34]} 23. Rc7 {[%clk 0:00:25]}  Bc6 {[%clk 0:01:25]} 24. Rd1 {[%clk 0:00:25]}  Nf4 {[%clk 0:01:16]} 25. Bc4 {[%clk 0:00:18]}  Nd5 {[%clk 0:01:12]} 26. Bxd5 {[%clk 0:00:09]}  exd5 {[%clk 0:01:12]} 27. Be7 {[%clk 0:00:06]}  Rxd7 {[%clk 0:01:12]} 28. Rxd7 {[%clk 0:00:07]}  Bxd7 {[%clk 0:01:13]} 29. Rxd5 {[%clk 0:00:07]}  Bc6 {[%clk 0:01:13]} 30. Rd8+ {[%clk 0:00:08]}  Rxd8 {[%clk 0:01:13]} 31. Bxd8 {[%clk 0:00:09]}  f5 {[%clk 0:01:12]} 32. Bc7 {[%clk 0:00:09]}  Kf7 {[%clk 0:01:13]} 33. Bb8 {[%clk 0:00:10]}  a6 {[%clk 0:01:10]} 34. a4 {[%clk 0:00:09]}  a5 {[%clk 0:01:06]} 35. Bc7 {[%clk 0:00:07]}  Bd5 {[%clk 0:01:06]} 36. Bxa5 {[%clk 0:00:06]}  Bxb3 {[%clk 0:01:07]} 37. Kg2 {[%clk 0:00:06]}  Bxa4 {[%clk 0:01:07]} 38. Bb6 {[%clk 0:00:07]}  Bc6+ {[%clk 0:01:07]} 39. Kg3 {[%clk 0:00:08]}  g5 {[%clk 0:01:06]} 40. h4 {[%clk 0:00:08]}  Kg6 {[%clk 0:01:02]} 41. hxg5 {[%clk 0:00:09]}  Kxg5 {[%clk 0:01:03]} 42. f4+ {[%clk 0:00:08]}  Kg6 {[%clk 0:01:03]} 43. Kh4 {[%clk 0:00:08]}  h5 {[%clk 0:01:03]} 44. Kg3 {[%clk 0:00:09]}  Be4 {[%clk 0:01:01]} 45. Kf2 {[%clk 0:00:08]}  h4 {[%clk 0:01:01]} 46. Bd8 {[%clk 0:00:05]}  h3 {[%clk 0:01:01]} 47. Kg3 {[%clk 0:00:05]}  Bg2 {[%clk 0:01:01]} 48. Bb6 {[%clk 0:00:05]}  Kf7 {[%clk 0:01:01]} 49. Bg1 {[%clk 0:00:05]}  Ke6 {[%clk 0:01:02]} 50. Kf2 {[%clk 0:00:06]}  b5 {[%clk 0:01:03]} 51. Ke3 {[%clk 0:00:06]}  Kd5 {[%clk 0:01:02]} 52. Kd3 {[%clk 0:00:07]}  b4 {[%clk 0:01:01]} 53. Bh2 {[%clk 0:00:06]}  Be4+ {[%clk 0:01:00]} 54. Kd2 {[%clk 0:00:02]}  Kc4 {[%clk 0:00:59]} 55. Bg3 {[%clk 0:00:03]}  b3 {[%clk 0:00:57]} 56. Kc1 {[%clk 0:00:03]}  Kc3 {[%clk 0:00:57]} 0-1


[Site "https://www.chess.com"]

[Event "Titled Tuesday Blitz May 25 2021"]
[White "Jamshidi, Amir Hossein"]
[Black "Rahman, Ziaur"]
[WhiteFideId "12552941"]
[BlackFideId "10200037"]
[WhiteElo "2280"]
[BlackElo "2460"]
[Result "1-0"]
[Round "07"]
[TimeControl "180+1"]
[Date "2021.05.25"]
[WhiteClock "0:00:40"]
[BlackClock "0:00:11"]

1. d4 {[%clk 0:02:52]}  e6 {[%clk 0:02:51]} 2. Nf3 {[%clk 0:02:52]}  c5 {[%clk 0:02:46]} 3. e3 {[%clk 0:02:51]}  Nf6 {[%clk 0:02:44]} 4. Bd3 {[%clk 0:02:51]}  d5 {[%clk 0:02:43]} 5. O-O {[%clk 0:02:50]}  c4 {[%clk 0:02:42]} 6. Be2 {[%clk 0:02:50]}  b5 {[%clk 0:02:41]} 7. Ne5 {[%clk 0:02:49]}  Bb7 {[%clk 0:02:36]} 8. f4 {[%clk 0:02:46]}  Nc6 {[%clk 0:02:34]} 9. Bd2 {[%clk 0:02:45]}  Be7 {[%clk 0:02:31]} 10. Be1 {[%clk 0:02:46]}  Ne4 {[%clk 0:02:22]} 11. Nd2 {[%clk 0:02:45]}  Nxd2 {[%clk 0:02:20]} 12. Qxd2 {[%clk 0:02:46]}  O-O {[%clk 0:02:19]} 13. Nxc6 {[%clk 0:02:38]}  Bxc6 {[%clk 0:02:19]} 14. f5 {[%clk 0:02:38]}  Bg5 {[%clk 0:02:12]} 15. fxe6 {[%clk 0:02:35]}  fxe6 {[%clk 0:02:11]} 16. Bg3 {[%clk 0:02:34]}  Qe7 {[%clk 0:02:04]} 17. Bf4 {[%clk 0:02:33]}  Bf6 {[%clk 0:02:00]} 18. Bg3 {[%clk 0:02:22]}  b4 {[%clk 0:01:51]} 19. Bg4 {[%clk 0:02:20]}  a5 {[%clk 0:01:47]} 20. c3 {[%clk 0:02:07]}  Be8 {[%clk 0:01:36]} 21. Qe2 {[%clk 0:02:00]}  Bg6 {[%clk 0:01:33]} 22. Qd2 {[%clk 0:01:42]}  Bd3 {[%clk 0:01:20]} 23. Be2 {[%clk 0:01:41]}  Bf5 {[%clk 0:01:11]} 24. Bf3 {[%clk 0:01:35]}  Bg5 {[%clk 0:01:10]} 25. Rfe1 {[%clk 0:01:32]}  Ra7 {[%clk 0:01:05]} 26. Qd1 {[%clk 0:01:29]}  Bh4 {[%clk 0:00:50]} 27. e4 {[%clk 0:01:25]}  Bxg3 {[%clk 0:00:47]} 28. hxg3 {[%clk 0:01:22]}  dxe4 {[%clk 0:00:47]} 29. Bxe4 {[%clk 0:01:23]}  Qg5 {[%clk 0:00:43]} 30. Qf3 {[%clk 0:01:11]}  Raf7 {[%clk 0:00:38]} 31. Qe3 {[%clk 0:01:08]}  Qg6 {[%clk 0:00:24]} 32. Bxf5 {[%clk 0:01:06]}  exf5 {[%clk 0:00:23]} 33. Qf4 {[%clk 0:01:03]}  Qb6 {[%clk 0:00:19]} 34. Re2 {[%clk 0:01:00]}  h6 {[%clk 0:00:17]} 35. Rf1 {[%clk 0:00:55]}  bxc3 {[%clk 0:00:16]} 36. bxc3 {[%clk 0:00:56]}  Kh7 {[%clk 0:00:16]} 37. Qe5 {[%clk 0:00:55]}  a4 {[%clk 0:00:13]} 38. Qe6 {[%clk 0:00:55]}  Qxe6 {[%clk 0:00:11]} 39. Rxe6 {[%clk 0:00:55]}  Rf6 {[%clk 0:00:10]} 40. Re5 {[%clk 0:00:54]}  Rb6 {[%clk 0:00:07]} 41. Rc5 {[%clk 0:00:53]}  Rb2 {[%clk 0:00:06]} 42. Rf2 {[%clk 0:00:54]}  Rb1+ {[%clk 0:00:07]} 43. Kh2 {[%clk 0:00:54]}  Re8 {[%clk 0:00:06]} 44. Rxc4 {[%clk 0:00:44]}  Ree1 {[%clk 0:00:06]} 45. g4 {[%clk 0:00:44]}  fxg4 {[%clk 0:00:02]} 46. Kg3 {[%clk 0:00:45]}  h5 {[%clk 0:00:01]} 47. Rxa4 {[%clk 0:00:45]}  Re3+ {[%clk 0:00:01]} 48. Kf4 {[%clk 0:00:44]}  Rxc3 {[%clk 0:00:01]} 49. Rd2 {[%clk 0:00:44]}  Rcc1 {[%clk 0:00:02]} 50. d5 {[%clk 0:00:43]}  Rd1 {[%clk 0:00:03]} 51. Rad4 {[%clk 0:00:37]}  Rxd2 {[%clk 0:00:03]} 52. Rxd2 {[%clk 0:00:38]}  Kg8 {[%clk 0:00:03]} 53. d6 {[%clk 0:00:38]}  Rb8 {[%clk 0:00:04]} 54. Kg5 {[%clk 0:00:38]}  Rd8 {[%clk 0:00:05]} 55. Kxh5 {[%clk 0:00:38]}  Kf7 {[%clk 0:00:06]} 56. Kxg4 {[%clk 0:00:39]}  Ke6 {[%clk 0:00:07]} 57. Kg5 {[%clk 0:00:39]}  Kd7 {[%clk 0:00:08]} 58. Kg6 {[%clk 0:00:39]}  Ra8 {[%clk 0:00:09]} 59. Kxg7 {[%clk 0:00:39]}  Ra3 {[%clk 0:00:09]} 60. Kf6 {[%clk 0:00:39]}  Rg3 {[%clk 0:00:10]} 61. Kf5 {[%clk 0:00:39]}  Ra3 {[%clk 0:00:10]} 62. g4 {[%clk 0:00:39]}  Ra5+ {[%clk 0:00:11]} 63. Kf6 {[%clk 0:00:40]} 1-0


[Site "https://www.chess.com"]

[Event "Titled Tuesday Blitz May 25 2021"]
[White "Kamsky, Gata"]
[Black "Xiong, Jeffery"]
[WhiteFideId "2000024"]
[BlackFideId "2047640"]
[WhiteElo "2644"]
[BlackElo "2724"]
[Result "0-1"]
[Round "07"]
[TimeControl "180+1"]
[Date "2021.05.25"]
[WhiteClock "0:00:32"]
[BlackClock "0:00:49"]

1. d4 {[%clk 0:03:00]}  Nf6 {[%clk 0:02:56]} 2. Nf3 {[%clk 0:03:01]}  c5 {[%clk 0:02:56]} 3. d5 {[%clk 0:03:00]}  b5 {[%clk 0:02:55]} 4. c4 {[%clk 0:02:58]}  bxc4 {[%clk 0:02:55]} 5. Nc3 {[%clk 0:02:58]}  g6 {[%clk 0:02:56]} 6. e4 {[%clk 0:02:58]}  d6 {[%clk 0:02:56]} 7. Bxc4 {[%clk 0:02:57]}  Bg7 {[%clk 0:02:57]} 8. O-O {[%clk 0:02:57]}  O-O {[%clk 0:02:57]} 9. h3 {[%clk 0:02:54]}  Nfd7 {[%clk 0:02:58]} 10. Bg5 {[%clk 0:02:44]}  h6 {[%clk 0:02:57]} 11. Bh4 {[%clk 0:02:39]}  Ba6 {[%clk 0:02:52]} 12. Nd2 {[%clk 0:02:27]}  Ne5 {[%clk 0:02:50]} 13. Bxa6 {[%clk 0:02:25]}  Nxa6 {[%clk 0:02:50]} 14. Qe2 {[%clk 0:02:23]}  Nb4 {[%clk 0:02:49]} 15. f4 {[%clk 0:02:20]}  Nd7 {[%clk 0:01:36]} 16. Nf3 {[%clk 0:02:05]}  c4 {[%clk 0:01:29]} 17. e5 {[%clk 0:01:53]}  Nd3 {[%clk 0:01:18]} 18. exd6 {[%clk 0:01:48]}  Qb6+ {[%clk 0:01:18]} 19. Kh1 {[%clk 0:01:48]}  exd6 {[%clk 0:01:08]} 20. Rab1 {[%clk 0:01:36]}  Rfe8 {[%clk 0:01:05]} 21. Qd2 {[%clk 0:01:33]}  Rab8 {[%clk 0:00:59]} 22. f5 {[%clk 0:01:24]}  gxf5 {[%clk 0:00:59]} 23. Bg3 {[%clk 0:01:06]}  N7c5 {[%clk 0:00:58]} 24. Nh4 {[%clk 0:01:01]}  Bxc3 {[%clk 0:00:51]} 25. bxc3 {[%clk 0:00:43]}  Ne4 {[%clk 0:00:51]} 26. Rxb6 {[%clk 0:00:37]}  Nxd2 {[%clk 0:00:50]} 27. Rxb8 {[%clk 0:00:37]}  Rxb8 {[%clk 0:00:50]} 28. Rd1 {[%clk 0:00:32]}  Ne4 {[%clk 0:00:50]} 29. Nxf5 {[%clk 0:00:32]}  Ndf2+ {[%clk 0:00:49]} 0-1


[Site "https://www.chess.com"]